Cogmind - Beta 16 @@@ ROGUE MODE // 2025.12.31 @ 02:56:10 Player: C4PT41N Result: Destroyed by G-47 Trooper with Particle Gun Performance ------------- Evolutions (0) 0 Regions Visited (4) 800 Robots Destroyed (38) 190 Value Destroyed (906) 906 Prototype IDs (23) 460 Alien Tech Used (0) 0 Bonus (89) 89 TOTAL SCORE: 2445 Bonus ------- Follower Combat Kills 89 Cogmind --------- Core Integrity 0/250 Matter 295/300 Energy 100/100 System Corruption 0% Temperature Cool (9) Movement Core (1000) Ox19 Location -9/Mines Parts ------- > --- POWER (1) -------- (None) > --- PROPULSION (2) --- (None) > --- UTILITY (2) ------ High-capacity Storage Unit Signal Interpreter > --- WEAPON (2) ------- YOLO Cannon > --- INVENTORY (20) --- Ion Engine Light Ion Engine Weight Redist. System Weight Redist. System Visual Processing Unit Sensor Array Signal Interpreter Terrain Scan Processor Seismic Detector Targeting Computer Weapon Shielding Light Armor Plating Makeshift Hacking Suite Tractor Beam Makeshift Shrapnel Gun Shock Trap Shock Trap Peak State ------------ > --- POWER ------------ Makeshift Power Source > --- PROPULSION ------- Wheel Wheel > --- UTILITY ---------- High-capacity Storage Unit Signal Interpreter > --- WEAPON ----------- YOLO Cannon > --- INVENTORY -------- Ion Engine Light Ion Engine Weight Redist. System Weight Redist. System Visual Processing Unit Sensor Array Terrain Scan Processor Seismic Detector Targeting Computer Weapon Shielding Light Armor Plating Makeshift Hacking Suite Tractor Beam Makeshift Shrapnel Gun Grenade Launcher Shock Trap Shock Trap Shock Trap [Rating: 30] Favorites ----------- Power Ion Engine Engine Ion Engine Power Core Light Nuclear Core Propulsion Wheel Treads Light Treads Leg Aluminum Leg Wheel Wheel Utility High-capacity Storage Unit Device Heat Sink Storage High-capacity Storage Unit Processor Signal Interpreter Weapon Light Assault Rifle Energy Gun Small Laser Energy Cannon YOLO Cannon Ballistic Gun Light Assault Rifle Launcher Grenade Launcher Special Weapon Welding Torch Build | -11 -10 -10 -10 -9 ------- Run | Yrd Mat Min Exi Min Slots Evolved . | . . . . . Power . | . . . . . Propulsion . | . . . . . Utility . | . . . . . Weapon . | . . . . . Parts Attached 27 | 8 12 1 3 3 Power 5 | 2 1 . 1 1 Engine 4 | 2 1 . 1 . Core 1 | . . . . 1 Reactor . | . . . . . Propulsion 5 | 2 3 . . . Treads 1 | . 1 . . . Leg 2 | 2 . . . . Wheel 2 | . 2 . . . Hover . | . . . . . Flight . | . . . . . Utility 7 | 1 6 . . . Device 4 | 1 3 . . . Storage 2 | . 2 . . . Processor 1 | . 1 . . . Hackware . | . . . . . Protection . | . . . . . Artifact . | . . . . . Weapon 10 | 3 2 1 2 2 Energy Gun 2 | 1 . 1 . . Energy Cannon 1 | . . . 1 . Ballistic Gun 3 | 2 . . . 1 Ballistic Cannon . | . . . . . Launcher 2 | . 1 . 1 . Special Weapon 2 | . 1 . . 1 Impact Weapon . | . . . . . Slashing Weapon . | . . . . . Piercing Weapon . | . . . . . Special Melee Weapon . | . . . . . Unidentified Prototypes 1 | . . . 1 . Parts Lost 6 | . . 1 . 5 Power 1 | . . . . 1 Propulsion 2 | . . . . 2 Utility . | . . . . . Weapon 3 | . . 1 . 2 Highest Loss Streak 4 | . . 1 . 4 To Critical Strikes . | . . . . . Average Backups 8 | 2 7 9 13 14 Power 1 | . . 1 1 2 Propulsion . | . 1 . . . Utility 5 | . 4 7 10 11 Weapon 1 | 1 . . 1 1 Tool/Special . | . . . . . Unused Backups 11 | . 1 . . 10 Power 1 | . . . . 1 Propulsion . | . . . . . Utility 9 | . . . . 9 Weapon 1 | . 1 . . . Tool/Special . | . . . . . Average Slot Usage (%) 91 | . 84 95 96 96 Engine 11 | . 13 14 14 . Core 2 | . . . . 13 Leg 3 | . 10 . . . Wheel 24 | . 17 28 28 27 Device 4 | . 12 . . . Storage 13 | . 12 14 14 14 Processor 9 | . 2 14 14 14 Energy Gun 4 | . . 9 10 . Ballistic Gun 1 | . 1 . . 4 Launcher 7 | . 12 . 2 10 Special Weapon 7 | . . 13 10 9 Peak Build Rating 30 | 6 7 8 30 27 Average Rating 8 | 5 6 7 12 13 On Entrance 6 | . 6 7 8 13 Avg Prop Armor Cover (%) . | . . . . . Naked Turns . | . . . . . Heaviest Build 63 | 8 50 47 62 63 Greatest Support 20 | 20 20 20 20 20 Greatest Overweight (x) 20 | . 2 2 3 20 Average Overweight (x) 1 | . 1 2 2 2 Largest Inventory Capacity 20 | 5 20 20 20 20 Average Capacity 14 | 5 17 20 20 20 Most Carried 20 | 5 11 15 20 20 Average Carried 10 | 2 7 13 18 18 Final Capacity 20 | 5 20 20 20 20 Final Carried 19 | 5 9 15 19 17 Class Distribution -------------------- 100% | Mutant Dominant Class ---------------- Mutant | -10/Materials Mutant | -10/Mines Mutant | -10/Exiles Mutant | -9/Mines Resources | -11 -10 -10 -10 -9 ----------- Run | Yrd Mat Min Exi Min Matter Collected 961 | 286 270 194 . 211 Remotely 52 | . 52 . . . Salvage Created 666 | 49 343 40 . 234 Parts 56 | 3 33 . . 20 Haulers Intercepted 1 | . 1 . . . Recyclers Shooed 1 | . . . . 1 Parts Field Recycled . | . . . . . Retrieved Matter . | . . . . . Parts Self-Destructed . | . . . . . Prevented . | . . . . . Parts Restored . | . . . . . Kills | -11 -10 -10 -10 -9 ------- Run | Yrd Mat Min Exi Min Combat Hostiles Destroyed 30 | 1 17 2 . 10 Guns 5 | 1 3 . . 1 Cannons 1 | . . . . 1 AOE 24 | . 14 2 . 8 Classes Destroyed 7 | 1 5 . . 1 Worker 1 | . 1 . . . Builder 3 | . 2 . . 1 Hauler 1 | . 1 . . . Watcher 3 | . 3 . . . Swarmer 13 | . 9 . . 4 Grunt 16 | 1 8 2 . 5 Duelist 1 | . . . . 1 Best Kill Streak 6 | 1 6 2 . 4 Combat Bots Only 6 | 1 6 2 . 3 Max Kills in Single Turn 3 | 1 3 1 . 2 Gunslinging . | . . . . . Exploded 3 | . 3 1 . 2 Melee . | . . . . . Uniques/NPCs Destroyed . | . . . . . Combat | -11 -10 -10 -10 -9 -------- Run | Yrd Mat Min Exi Min Hostile Shots Fired 100 | 3 55 4 . 38 Missed 32 | . 22 1 . 9 Hits 68 | 3 33 3 . 29 Projectile 68 | 3 33 3 . 29 Critical Strikes 2 | . . 1 . 1 Damage Taken 896 | 32 368 74 . 422 Core 263 | 11 82 21 . 149 Absorbed by Shields . | . . . . . Regen/Repaired (Parts) 78 | . 78 . . . Core Remaining (%) 95 | 95 . . . . Volleys Fired 63 | 3 38 4 1 17 Largest 2 | 2 2 1 1 1 Hottest 100 | 40 40 30 100 100 Shots Fired 76 | 6 48 4 1 17 Gun 31 | 6 20 . . 5 Cannon 2 | . . . 1 1 Launcher 39 | . 27 4 . 8 Special 4 | . 1 . . 3 Kinetic 31 | 6 20 . . 5 Thermal 6 | . 1 . 1 4 Explosive 39 | . 27 4 . 8 Electromagnetic . | . . . . . Robot Hit Streak 6 | 3 4 5 . 6 Robot Miss Streak 2 | 1 2 . . 2 Penetration Max . | . . . . . Secondary Targets . | . . . . . Shots Hit Robots 41 | 4 25 2 . 10 Core Hits 62 | 2 36 5 . 19 Critical Kills . | . . . . . Critical Parts Destroyed 1 | . 1 . . . Critical Strikes 1 | . 1 . . . Destroy 1 | . 1 . . . Melee Attacks . | . . . . . Impact . | . . . . . Slashing . | . . . . . Piercing . | . . . . . Sneak Attacks . | . . . . . Combat Hostiles . | . . . . . Follow-up Attacks . | . . . . . Damage Inflicted 2471 | 35 1421 199 . 816 Guns 193 | 35 95 . . 63 Cannons 147 | . . . . 147 Explosions 2131 | . 1326 199 . 606 Melee . | . . . . . Ramming . | . . . . . Kinetic 193 | 35 95 . . 63 Thermal 294 | . . . . 294 Explosive 1984 | . 1326 199 . 459 Electromagnetic . | . . . . . Impact . | . . . . . Slashing . | . . . . . Piercing . | . . . . . Highest Corruption . | . . . . . Average Corruption . | . . . . . Corruption Purged . | . . . . . Corruption Blocked . | . . . . . Overload Shots . | . . . . . Overflow Damage 84 | . 32 10 . 42 Projectiles . | . . . . . Explosions 84 | . 32 10 . 42 Melee . | . . . . . Knockbacks . | . . . . . Impact . | . . . . . Kinetic . | . . . . . Secondary . | . . . . . Self-Inflicted Damage 136 | . 43 33 . 60 Shots 7 | . 2 3 . 2 Rammed . | . . . . . Targets Rammed . | . . . . . Kicked . | . . . . . Crushed . | . . . . . Highest Temperature 72 | 18 1 22 40 72 Average Temperature 20 | 12 1 10 22 28 Received Heat Transfer 327 | 18 93 42 . 174 Siege Activations . | . . . . . Martial Activations . | . . . . . Shielding Activations . | . . . . . Robots Disrupted . | . . . . . Combat Hostiles . | . . . . . Robots Corrupted . | . . . . . Combat Hostiles . | . . . . . Parts Fried . | . . . . . Impact Corruptions . | . . . . . Robots Melted . | . . . . . Combat Hostiles . | . . . . . Parts Melted . | . . . . . Heat Transferred 160 | . . . . 160 Parts Sabotaged . | . . . . . Parts Stolen . | . . . . . Parts Stripped . | . . . . . Power Chain Reactions . | . . . . . Alert | -11 -10 -10 -10 -9 ------- Run | Yrd Mat Min Exi Min Maximum Alert Level . | . . . . . Low Security (%) 100 | 100 100 100 . 100 Level 1 . | . . . . . Level 2 . | . . . . . Level 3 . | . . . . . Level 4 . | . . . . . Level 5 . | . . . . . High Security . | . . . . . Max Security . | . . . . . Peak Influence 193 | 20 193 73 . 125 Initial 6 | . . 6 . . Average 18 | . 39 4 . 34 Influence Increases 1177 | 20 647 77 . 433 Destroy 0b10 Robot/C 700 | 20 340 40 . 300 Destroy 0b10 Robot/NC 40 | . 35 . . 5 Destroy Leader 128 | . 78 10 . 40 Allied During Kill 17 | . . . . 17 Successful Hack 8 | . 8 . . . Disable Machine 120 | . 90 15 . 15 Destroy Structure 164 | . 96 12 . 56 Influence Decreases 1127 | 20 631 93 . 383 Entered New Map 10 | . . 10 . . Time Decay 859 | 20 481 73 . 285 Lost Part 48 | . . 10 . 38 Lost Ally 60 | . . . . 60 Purge Threat 150 | . 150 . . . Squads Dispatched 4 | . 3 . . 1 Investigation 3 | . 3 . . . Extermination . | . . . . . Reinforcement . | . . . . . Assault 1 | . . . . 1 Garrison . | . . . . . Intercept . | . . . . . Searches Triggered . | . . . . . Construction Impeded . | . . . . . Haulers Reinforced . | . . . . . Active Scanning Responses . | . . . . . Cargo Convoy Interrupts . | . . . . . Stealth | -11 -10 -10 -10 -9 --------- Run | Yrd Mat Min Exi Min Distress Signals 1 | . 1 . . . Communications Jammed . | . . . . . Distress Signals . | . . . . . Times Spotted 42 | 1 21 2 . 18 Peak Tracking Total 4 | 1 4 2 . 4 Tactical Retreats . | . . . . . Traps | -11 -10 -10 -10 -9 ------- Run | Yrd Mat Min Exi Min Traps Triggered 1 | . 1 . . . Indirectly . | . . . . . Trap Hack Attempts . | . . . . . Triggered . | . . . . . Disarmed . | . . . . . Reprogrammed . | . . . . . Reused . | . . . . . Traps Extracted . | . . . . . Installed . | . . . . . Triggered . | . . . . . Most Traps Carried 5 | . . 5 5 3 Machines | -11 -10 -10 -10 -9 ---------- Run | Yrd Mat Min Exi Min Machines Disabled 8 | . 6 1 . 1 Max in Single Turn 2 | . 2 1 . 1 Machines Repaired . | . . . . . Machines Dismantled . | . . . . . Machines Sabotaged . | . . . . . Overloaded Fab Kills . | . . . . . Hacking | -11 -10 -10 -10 -9 --------- Run | Yrd Mat Min Exi Min Machines Accessed 11 | . 6 . 5 . Terminals 4 | . 4 . . . Fabricators . | . . . . . Repair Stations 1 | . 1 . . . Recycling Units 1 | . 1 . . . Scanalyzers . | . . . . . Garrison Access . | . . . . . Total Hacks 40 | . 12 . 28 . Successful 39 | . 11 . 28 . Failed 1 | . 1 . . . Catastrophic . | . . . . . Database Lockouts . | . . . . . Manual 23 | . . . 23 . Terminals 6 | . 6 . . . Fabricators . | . . . . . Repair Stations 5 | . 5 . . . Recycling Units 1 | . 1 . . . Scanalyzers . | . . . . . Garrison Access . | . . . . . Terminal Hacks 34 | . 6 . 28 . Record 29 | . 2 . 27 . Emergency Access Points 1 | . 1 . . . Unreport Threat 1 | . 1 . . . Locate Traps 2 | . 2 . . . Proto ID Catalog 1 | . . . 1 . Fabricator Hacks . | . . . . . Repair Station Hacks 4 | . 4 . . . Scan Component 2 | . 2 . . . Repair 2 | . 2 . . . Recycling Unit Hacks 1 | . 1 . . . Retrieve Components 1 | . 1 . . . Scanalyzer . | . . . . . Garrison Access Hacks . | . . . . . Unauthorized Hacks . | . . . . . Terminals . | . . . . . Fabricators . | . . . . . Repair Stations . | . . . . . Recycling Units . | . . . . . Scanalyzers . | . . . . . Garrison Access . | . . . . . Data Cores Recovered . | . . . . . Used . | . . . . . Hacking Detections 2 | . 2 . . . Full Trace Events 2 | . 2 . . . Feedback Events . | . . . . . Feedback Blocked . | . . . . . Robot Schematics Acquired . | . . . . . Robots Built . | . . . . . Authchips . | . . . . . Time . | . . . . . Total Robot Build Rating . | . . . . . Part Schematics Acquired . | . . . . . Parts Built . | . . . . . Authchips . | . . . . . Time . | . . . . . Total Part Build Rating . | . . . . . Part Studies Acquired . | . . . . . Parts Repaired 2 | . 2 . . . Time 52 | . 52 . . . Parts Recycled . | . . . . . Recycled Matter . | . . . . . Retrieved Matter . | . . . . . Retrieved Components 10 | . 10 . . . Parts Scanalyzed . | . . . . . Part Schematics Acquired . | . . . . . Parts Damaged . | . . . . . Bothacking | -11 -10 -10 -10 -9 ------------ Run | Yrd Mat Min Exi Min Used RIF Installer . | . . . . . Robots Hacked . | . . . . . Non-combat . | . . . . . Combat . | . . . . . Robot Hacks Applied . | . . . . . Relay Couplers Released . | . . . . . Fabnet Peak Effective % . | . . . . . Robots Rewired 3 | . . . 3 . Allies Hacked . | . . . . . Hacks Repelled . | . . . . . Allies | -11 -10 -10 -10 -9 -------- Run | Yrd Mat Min Exi Min Total Allies 5 | . . . 3 2 Largest Group 3 | . . . 3 3 Highest-Rated Group 62 | . . . 37 62 Highest-Rated Ally 31 | . . . 21 31 Total Orders 13 | . . . 10 3 GUARD 4 | . . . 4 . AID 9 | . . . 6 3 Ally Attacks 30 | . . . . 30 Total Damage 389 | . . . . 389 Kills 6 | . . . . 6 Allies Corrupted . | . . . . . Allies Melted . | . . . . . Intel | -11 -10 -10 -10 -9 ------- Run | Yrd Mat Min Exi Min Active Infowar (turns) 1420 | . 1420 . . . Sensors 6 | . 6 . . . Seismic 1414 | . 1414 . . . Robot Analysis Total . | . . . . . Derelict Logs Recovered 2 | . . 1 . 1 Drone Launches . | . . . . . Drone Recoveries . | . . . . . Exploration | -11 -10 -10 -10 -9 ------------- Run | Yrd Mat Min Exi Min Turns Passed 7578 | 2396 1893 1170 1092 1027 Spaces Moved 4485 | 488 1277 971 905 844 Core 30 | 29 . . . 1 Treads . | . . . . . Legs 776 | 459 317 . . . Wheels 3679 | . 960 971 905 843 Hover . | . . . . . Flight . | . . . . . Fastest Speed 50 | 50 80 110 110 110 Average Speed 116 | 115 128 110 110 111 Slowest Speed 1050 | 120 260 110 125 1050 Overloaded Moves . | . . . . . Propulsion Burnouts . | . . . . . Robots Hopped . | . . . . . Potential Cave-ins . | . . . . . Cave-ins Triggered . | . . . . . Exploration Rate (%) 84 | 38 93 99 93 97 Regions Visited 4 Branch Regions 3 Pre-discovered Areas 2 | . . 1 1 . Known Exits Taken 3 | . 1 1 1 . Unknown Exits Taken 1 | 1 . . . . Scrap Searched 2 | . . 1 . 1 Spaces Dug 2 | . . . . 2 Terrain Destroyed 220 | . 120 28 9 63 Melee . | . . . . . Projectile 4 | . . . 1 3 AOE 216 | . 120 28 8 60 Terrain Rammed . | . . . . . Walls Destroyed . | . . . . . Machines Disabled . | . . . . . Actions | -11 -10 -10 -10 -9 --------- Run | Yrd Mat Min Exi Min Total 6774 | 2313 1487 1069 996 909 Wait 2049 | 1804 123 85 4 33 Move 4481 | 487 1276 970 904 844 Hop . | . . . . . Pick Up 53 | 11 22 8 6 6 Fast Attach . | . . . . . Attach 16 | 6 4 2 2 2 Detach 1 | . . . 1 . Swap 18 | 2 13 . 1 2 Drop 20 | . 11 . 4 5 Fire 63 | 3 38 4 1 17 Melee . | . . . . . Ram . | . . . . . Kick . | . . . . . Crush . | . . . . . Escape Stasis . | . . . . . Rewire 73 | . . . 73 . Trap . | . . . . . Miscellaneous . | . . . . . Route ------- -11/Scrapyard -10/Materials (discovered 5 exits: *Mat x3 / *Min x2) -10/Mines (discovered 4 exits: *Mat x2 / *Exi / *Sub) -10/Exiles (discovered 2 exits: *Min x2) -9/Mines (discovered 2 exits: *Mat x2) History --------- Turn | Location | Event 2 | -11/Scrapyard | Met Revision 17 74 | -11/Scrapyard | Discovered new exit (range 8) 2397 | -11/Scrapyard | Entered Materials 2397 | -10/Materials | Discovered new exit (range 14) 2398 | -10/Materials | Build established: Mutant 2990 | -10/Materials | Discovered new exit (range 15) 3087 | -10/Materials | Discovered new exit (range 15) 3239 | -10/Materials | Repaired Grenade Launcher 3509 | -10/Materials | Discovered new exit (range 10) 3786 | -10/Materials | Repaired Ion Engine 3893 | -10/Materials | Discovered new exit (range 11) 3935 | -10/Materials | Identified exit to Materials 4216 | -10/Materials | Identified exit to Mines 4290 | -10/Materials | Entered Mines 4366 | -10/Mines | Met a Derelict bent on vengeance 4494 | -10/Mines | Found a hidden stash of uninstalled traps 4545 | -10/Mines | Deemed a non-threat by the Exiles lab entrance 4546 | -10/Mines | Discovered new exit (range 5) 4553 | -10/Mines | Identified exit to Exiles 4841 | -10/Mines | Discovered exit to Materials (range 11) 4970 | -10/Mines | Discovered new exit (range 10) 5008 | -10/Mines | Identified exit to Subcaves 5110 | -10/Mines | Discovered exit to Materials (range 9) 5115 | -10/Mines | Learned location of Mines (-9) 5460 | -10/Mines | Entered Exiles 5460 | -10/Exiles | Found Exiles lab destroyed 5490 | -10/Exiles | Discovered new exit (range 14) 5513 | -10/Exiles | Identified exit to Mines 6011 | -10/Exiles | Learned location of Zion (-7) 6054 | -10/Exiles | Discovered exit to Mines (range 15) 6309 | -10/Exiles | Opened EX-Vault 6316 | -10/Exiles | Found Prototype Energy Cannon 6318 | -10/Exiles | Identified YOLO Cannon 6552 | -10/Exiles | Entered Mines 6552 | -9/Mines | Accompanied by 3 allies 6715 | -9/Mines | Learned Materials stockpile data 6882 | -9/Mines | Received a Mining Laser from a helpful Derelict 6981 | -9/Mines | Met a Derelict testing a Signal Generator 7290 | -9/Mines | Discovered new exit (range 6) 7296 | -9/Mines | Identified exit to Materials 7392 | -9/Mines | Discovered exit to Materials (range 10) 7564 | -9/Mines | Core integrity fell below 50% 7567 | -9/Mines | Core integrity fell below 20% 7579 | -9/Mines | Destroyed by G-47 Trooper with Particle Gun Last Messages --------------- 07534_ C-45 Heavy ARC bursts open, deploying its payload. 07534_ G-47 Trooper unfolds itself. 07534_ G-34 Mercenary unfolds itself. 07534_ M-13 Machinist unfolds itself. 07542_ M-13 Machinist repairs R-06 Scavenger. 07545_ Dropped Shock Trap. 07548_ Acquired Shock Trap. 07549_ Dropped Shock Trap. 07550_ Acquired Shock Trap. 07553_ Dropped Shock Trap. 07553_ M-13 Machinist repairs G-47 Trooper. 07555_ Wheel destroyed. 07557_ Critical hit (Burn: +37). 07561_ Mining Laser destroyed. 07565_ Wheel destroyed. 07566_ G-34 Mercenary destroyed. 07566_ Destroyed Lgt. Nuclear Core. 07566_ Laser Drill disabled. 07577_ Lgt. Nuclear Core destroyed. Map ----- +----------------------------------------------------+ | [==[ #??????????????? | | ###############??????????????? | | ##########???????????????????? | | ########????????????????????? | | ##???????????????????? | | ##??????????????????? | | ##### ## ## #??????????????????? | | ##???## #### ## #??????????????????? | | ??????## ##??# #?# #??????????????????? | | ???????## ##???# #??# ##?????????????????? | | ????????###????# #??# ###########???????? | | ???????????????# #??# ## ##??????? | | ???????????????# #### #??????? | | ???????????????# ##?????? | | ???????????????####### #?????? | | ?????????????????##### #?????? | | ????????????????## #?????? | | ?????##????????## """ ##?????? | | ????? #????????# """ ##??????? | | ????? ##???????# ###???????? | | ????? #???????## = ##?????????? | | ????? #????????##=###; =% ##??????????? | | ????? #?????????#"#?#;;g * ##???????????? | | ????? #?????????#%#?#;; [ ;#????????????? | | ##### ########### #?#; ;;#????????????? | | ## #?# @;;##????????????? | | ######### ###?# ###?????????????? | | #???????# #???## ##???????????????? | | # #???????# #????####?####???????????? | | ### ##???????# #????????## ##??????????? | | ??## #????????# #???????## *=*#??????????? | | ???# #####????# #???????# %* ##?????????? | | ???# #????# ######### * [ #?????????? | | ???# #????# % #?????????? | | ???##### #????############ #?????????? | | ???????# #####???????????## #?????????? | | ???????# ###### &##??## #????????? | | ???????##### #### ##????????? | | ???????????## #???###?????????? | | ????????????###### #######???????????????? | | ??????????????????###?????????????????????? | | ??????????????????????????????????????????? | | ??????????????????????????????????????????? | | ??????????????????????????????????????????? | | ??????????????????????????????????????????? | | ??????????????????????????????????????????? | | ??????????????????????????????????????????? | | ??????????????????????????????????????????? | | | | | +----------------------------------------------------+ Best States ------------- Heat Dissipation 35 Energy Generation 15 Energy Capacity 250 Matter Stores 300 Matter Capacity 300 Sight Range 16 Robot Scan Range 14 Terrain Scan Density 10 Evasion (%) 55 Item Schematics ----------------- None Robot Schematics ------------------ None Fabricated ------------ Nothing Repaired ---------- Grenade Launcher | 58% | -10/Materials Ion Engine | 11% | -10/Materials Studied --------- None Alien Tech Used ----------------- None Achievements -------------- A New Friend Everything Is Under Control Luggage Code Challenges ------------ None Game ------ Seed TiamatReflectiveWell Manual? 0 Play Time 01:03:58 Cumulative 4.1 hours Start 2025.12.31 @ 01:42:24 End 2025.12.31 @ 02:56:10 Sessions 1 Manual Loads 0 Difficulty Rogue Special Mode None Game No. 3 Rogue 3 Adventurer 0 Explorer 0 Win Type - Total 0 Types 0/0/0/0/0/0/0/0/0/0 Lore% 7 Gallery% 5 Achievement% 9 Wizard Run 0 Options --------- Layout 1 ASCII 0 Keyboard 0 Movement Arrows Keybinds 0 Fullscreen 2 Font 24/Crisp Map View 50x35 Zoom Use 0% Tactical HUD 1 Map Filters NONE Filters NONE Steam 1 RUN: a6db0c34-6b99-4e02-aad9-47f68520827b